fUSD/lending_fUSD_20241225
["ID","MTS","AMOUNT","RATE_DAILY","PERIOD"]
[346668601,1735163450480,-500.0,0.00011839,2]
[346668602,1735163450491,-1654.73,0.00011839,2]
[346668603,1735163450499,-500.0,0.00011839,2]
[346668604,1735163450508,-500.0,0.00011839,2]
[346668605,1735163450518,-1967.39,0.00011839,2]
[346668606,1735163450527,-500.0,0.00011839,2]
[346668607,1735163450536,-500.0,0.00011839,2]
[346668608,1735163450545,-500.0,0.00011839,2]
[346668609,1735163450555,-500.0,0.00011839,2]
[346668610,1735163450564,-1087.41,0.00011839,2]
[346668611,1735163450573,-1017.53,0.00011839,2]
[346668612,1735163450583,-500.0,0.00011839,2]
[346668613,1735163450592,-500.0,0.00011839,2]
[346668614,1735163450601,-500.0,0.00011839,2]
[346668615,1735163450611,-500.0,0.00011839,2]
[346668616,1735163450620,-500.0,0.00011839,2]
[346668617,1735163450629,-500.0,0.00011839,2]
[346668618,1735163450638,-500.0,0.00011839,2]
[346668619,1735163450648,-1960.1,0.00011839,2]
[346668620,1735163450658,-500.0,0.00011839,2]
[346668621,1735163450667,-500.0,0.00011839,2]
[346668622,1735163450676,-954.61,0.00011839,2]
[346668623,1735163450685,-500.0,0.00011839,2]
[346668624,1735163450695,-500.0,0.00011839,2]
[346668625,1735163450704,-500.0,0.00011839,2]
[346668626,1735163450714,-2881.7,0.00011839,2]
[346668627,1735163450723,-500.0,0.00011839,2]
[346668628,1735163450732,-500.0,0.00011839,2]
[346668629,1735163450741,-1437.69,0.00011839,2]
[346668630,1735163450751,-500.0,0.00011839,2]
[346668631,1735163450760,-3870.5,0.00011839,2]
[346668632,1735163450769,-618.73,0.00011839,2]
[346668633,1735163450779,-500.0,0.00011839,2]
[346668634,1735163450788,-500.0,0.00011839,2]
[346668635,1735163450798,-4733.52,0.00011839,2]
[346668636,1735163450807,-1093.41,0.00011839,2]
[346668637,1735163450816,-3683.1,0.00011839,2]
[346668638,1735163450826,-2052.63,0.00011839,2]
[346668639,1735163450835,-500.0,0.00011839,2]
[346668640,1735163450845,-500.0,0.00011839,2]
[346668641,1735163450854,-500.0,0.00011839,2]
[346668642,1735163450864,-485.96968553,0.00011839,2]
[346668643,1735163450873,-500.0,0.00011839,2]
[346668644,1735163450882,-500.52772211,0.00011839,2]
[346668645,1735163450892,-1870.87,0.00011839,2]
[346668646,1735163450901,-876.87,0.00011839,2]
[346668647,1735163450911,-511.45446238,0.00011839,2]
[346668648,1735163450920,-531.34,0.00011839,2]
[346668649,1735163450929,-201.71695154,0.00011839,2]
[346668650,1735163450939,-504.73,0.00011839,2]
[346668651,1735163450948,-1288.05,0.00011839,2]
[346668652,1735163450958,-3487.19,0.00011839,2]
[346668653,1735163450968,-556.67,0.00011839,2]
[346668654,1735163450978,-2369.68,0.00011839,2]
[346668655,1735163450987,-500.0,0.00011839,2]
[346668656,1735163450996,-910.7,0.00011839,2]
[346668657,1735163451006,-500.0,0.00011839,2]
[346668658,1735163451015,-1073.22,0.00011839,2]
[346668659,1735163451025,-500.0,0.00011839,2]
[346668660,1735163451183,-500.0,0.00011839,2]
[346668661,1735163451193,-4080.92,0.00011839,2]
[346668662,1735163451202,-686.38,0.00011839,2]
[346668663,1735163451211,-500.0,0.00011839,2]
[346668664,1735163451221,-500.0,0.00011839,2]
[346668665,1735163451231,-500.0,0.00011839,2]
[346668666,1735163451240,-528.07,0.00011839,2]
[346668667,1735163451249,-1266.01,0.00011839,2]
[346668668,1735163451258,-433.48440074,0.00011839,2]
[346668669,1735163451303,-500.0,0.00011837,2]
[346668670,1735163451313,-66.51559926,0.00011839,2]
[346668671,1735163451322,-1260.79,0.00011839,2]
[346668672,1735163451331,-500.0,0.00011839,2]
[346668673,1735163451341,-1610.39,0.00011839,2]
[346668674,1735163451351,-500.0,0.00011839,2]
[346668675,1735163451361,-835.92,0.00011839,2]
[346668676,1735163451370,-1241.07,0.00011839,2]
[346668677,1735163451380,-1766.56,0.00011839,2]
[346668678,1735163451390,-1153.13,0.00011839,2]
[346668679,1735163451403,-1965.42,0.00011839,2]
[346668680,1735163451413,-500.0,0.00011839,2]
[346668681,1735163451422,-500.0,0.00011839,2]
[346668682,1735163451433,-796.55,0.00011839,2]
[346668683,1735163451443,-3235.66,0.00011839,2]
[346668684,1735163451453,-500.0,0.00011839,2]
[346668685,1735163451463,-1269.18,0.00011839,2]
[346668686,1735163451472,-576.06,0.00011839,2]
[346668687,1735163451482,-734.36,0.00011839,2]
[346668688,1735163451492,-721.66,0.00011839,2]
[346668689,1735163451503,-1842.44,0.00011839,2]
[346668690,1735163451513,-99247.70889561,0.00011839,2]
[346668691,1735163451522,-358675.7459652,0.0001184,2]
[346668692,1735163451535,-80009.84371858,0.0001184,2]
[346668694,1735164252602,3000.0,0.00024899,120]
[346668695,1735164254420,-250.0,0.00010581,2]
[346668696,1735164254444,-513.43,0.00010666,2]
[346668697,1735164254467,-152.42,0.00010937,2]
[346668698,1735164254489,-152.42,0.00010944,2]
[346668699,1735164254513,-152.42,0.00010951,2]
[346668700,1735164254537,-152.42,0.00010957,2]
[346668701,1735164254560,-152.42,0.00010964,2]
[346668702,1735164254584,-152.42,0.00010971,2]
[346668703,1735164254607,-152.42,0.00010978,2]
[346668704,1735164254629,-152.42,0.00010985,2]
[346668705,1735164254651,-152.42,0.00010992,2]
[346668706,1735164254677,-416.73,0.00011043,2]
[346668707,1735164254699,-250.0,0.00011045,2]
[346668708,1735164254722,-1000.0,0.00011088,2]
[346668709,1735164254751,-250.0,0.00011164,2]
[346668710,1735164255061,-23900.0,0.00011312,2]
[346668711,1735164255085,-167.43,0.00011454,2]
[346668712,1735164255107,-320.61106437,0.00011514,2]
[346668713,1735164255129,-1000.0,0.00011637,2]
[346668714,1735164255154,-160.65392299,0.00011637,2]
[346668715,1735164255180,-378080.3191,0.00011737,2]
[346668716,1735164255202,-186.26133375,0.00011737,2]
[346668717,1735164255224,-165.19057036,0.0001174,2]
[346668718,1735164255247,-1854.74565728,0.0001174,2]
[346668719,1735164255269,-361.33147126,0.0001174,2]
[346668720,1735164255292,-500.0,0.00011837,2]
[346668721,1735164255314,-500.0,0.00011837,2]
[346668722,1735164255337,-500.0,0.00011837,2]
[346668723,1735164255358,-500.0,0.00011837,2]
[346668724,1735164255382,-500.0,0.00011837,2]
[346668725,1735164255404,-500.0,0.00011837,2]
[346668726,1735164255428,-500.0,0.00011837,2]
[346668727,1735164255450,-500.0,0.00011837,2]
[346668728,1735164255473,-500.0,0.00011837,2]
[346668729,1735164255494,-500.0,0.00011837,2]
[346668730,1735164255517,-500.0,0.00011837,2]
[346668731,1735164255539,-500.0,0.00011837,2]
[346668732,1735164255565,-500.0,0.00011837,2]
[346668733,1735164255586,-500.0,0.00011837,2]
[346668734,1735164255608,-507.19173958,0.00011837,2]
[346668735,1735164255631,-500.0,0.00011837,2]
[346668736,1735164255653,-500.0,0.00011837,2]
[346668737,1735164255675,-500.0,0.00011837,2]
[346668738,1735164255696,-507.23654545,0.00011837,2]
[346668739,1735164255718,-500.0,0.00011837,2]
[346668740,1735164255744,-500.0,0.00011837,2]
[346668741,1735164255768,-500.0,0.00011837,2]
[346668742,1735164255789,-249.97500001,0.00011837,2]
[346668743,1735164255810,-500.0,0.00011837,2]
[346668744,1735164255832,-500.0,0.00011837,2]
[346668745,1735164255855,-500.0,0.00011837,2]
[346668746,1735164255875,-500.0,0.00011837,2]
[346668747,1735164255897,-500.0,0.00011837,2]
[346668748,1735164255919,-500.0,0.00011837,2]
[346668749,1735164255940,-500.0,0.00011837,2]
[346668750,1735164255962,-500.0,0.00011837,2]
[346668751,1735164255983,-500.0,0.00011837,2]
[346668752,1735164256011,-500.0,0.00011837,2]
[346668753,1735164256033,-500.0,0.00011837,2]
[346668754,1735164256056,-500.0,0.00011837,2]
[346668755,1735164256081,-500.0,0.00011837,2]
[346668756,1735164256104,-500.0,0.00011837,2]
[346668757,1735164256128,-500.0,0.00011837,2]
[346668758,1735164256150,-500.0,0.00011837,2]
[346668759,1735164256172,-506.60454536,0.00011837,2]
[346668760,1735164256193,-500.0,0.00011837,2]
[346668761,1735164256214,-500.0,0.00011837,2]
[346668762,1735164256236,-500.0,0.00011837,2]
[346668763,1735164256258,-500.0,0.00011837,2]
[346668764,1735164256282,-500.0,0.00011837,2]
[346668765,1735164256303,-500.0,0.00011837,2]
[346668766,1735164256324,-500.0,0.00011837,2]
[346668767,1735164256346,-500.0,0.00011837,2]
[346668768,1735164256368,-500.0,0.00011837,2]
[346668769,1735164256390,-500.0,0.00011837,2]
[346668770,1735164256412,-500.0,0.00011837,2]
[346668771,1735164256434,-500.0,0.00011837,2]
[346668772,1735164256455,-505.91591175,0.00011837,2]
[346668773,1735164256476,-500.0,0.00011837,2]
[346668774,1735164256497,-500.0,0.00011837,2]
[346668775,1735164256519,-500.0,0.00011837,2]
[346668776,1735164256541,-500.0,0.00011837,2]
[346668777,1735164256562,-500.0,0.00011837,2]
[346668778,1735164256584,-500.0,0.00011837,2]
[346668779,1735164256606,-500.0,0.00011837,2]
[346668780,1735164256629,-500.0,0.00011837,2]
[346668781,1735164256651,-500.0,0.00011837,2]
[346668782,1735164256674,-500.0,0.00011837,2]
[346668783,1735164256697,-500.0,0.00011837,2]
[346668784,1735164256720,-500.0,0.00011837,2]
[346668785,1735164256745,-500.0,0.00011837,2]
[346668786,1735164256769,-175.3,0.00011837,2]
[346668787,1735164256791,-500.0,0.00011837,2]
[346668788,1735164256813,-500.0,0.00011837,2]
[346668789,1735164256835,-502.25957178,0.00011837,2]
[346668790,1735164256856,-500.0,0.00011837,2]
[346668791,1735164256877,-500.0,0.00011837,2]
[346668792,1735164256898,-500.0,0.00011837,2]
[346668793,1735164256919,-500.0,0.00011837,2]
[346668794,1735164256942,-500.0,0.00011837,2]
[346668795,1735164256965,-500.0,0.00011837,2]
[346668796,1735164256986,-500.0,0.00011837,2]
[346668797,1735164257008,-500.0,0.00011837,2]
[346668798,1735164257030,-500.0,0.00011837,2]
[346668799,1735164257051,-500.0,0.00011837,2]
[346668800,1735164257072,-500.0,0.00011837,2]
[346668801,1735164257106,-500.0,0.00011837,2]
[346668802,1735164257130,-500.0,0.00011837,2]
[346668803,1735164257151,-500.0,0.00011837,2]
[346668804,1735164257173,-500.0,0.00011837,2]
[346668805,1735164257196,-500.0,0.00011837,2]
[346668806,1735164257219,-500.0,0.00011837,2]
[346668807,1735164257241,-500.0,0.00011837,2]
[346668808,1735164257263,-500.0,0.00011837,2]
[346668809,1735164257287,-500.0,0.00011837,2]
[346668810,1735164257309,-500.0,0.00011837,2]
[346668811,1735164257330,-500.0,0.00011837,2]
[346668812,1735164257353,-500.0,0.00011837,2]
[346668813,1735164257374,-500.0,0.00011837,2]
[346668814,1735164257397,-500.0,0.00011837,2]
[346668815,1735164257420,-500.0,0.00011837,2]
[346668816,1735164257442,-506.29008162,0.00011837,2]
[346668817,1735164257465,-500.0,0.00011837,2]
[346668818,1735164257488,-500.0,0.00011837,2]
[346668819,1735164257510,-500.0,0.00011837,2]
[346668820,1735164257533,-500.0,0.00011837,2]
[346668821,1735164257557,-500.0,0.00011837,2]
[346668822,1735164257580,-500.0,0.00011837,2]
[346668823,1735164257603,-500.0,0.00011837,2]
[346668824,1735164257627,-500.0,0.00011837,2]
[346668825,1735164257650,-500.0,0.00011837,2]
[346668826,1735164257674,-935.74,0.00011837,2]
[346668827,1735164257698,-210.58071379,0.00011837,2]
[346668828,1735164257722,-500.0,0.00011837,2]
[346668829,1735164257748,-500.0,0.00011837,2]
[346668830,1735164257770,-500.0,0.00011837,2]
[346668831,1735164257792,-500.0,0.00011837,2]
[346668832,1735164257815,-500.0,0.00011837,2]
[346668833,1735164258043,-1066.39,0.00011837,2]
[346668834,1735164258066,-500.0,0.00011837,2]
[346668835,1735164258088,-500.0,0.00011837,2]
[346668836,1735164258110,-500.0,0.00011837,2]
[346668837,1735164258132,-500.0,0.00011837,2]
[346668838,1735164258154,-500.0,0.00011837,2]
[346668839,1735164258177,-500.0,0.00011837,2]
[346668840,1735164258198,-500.0,0.00011837,2]
[346668841,1735164258220,-500.0,0.00011837,2]
[346668842,1735164258241,-500.0,0.00011837,2]
[346668843,1735164258264,-500.0,0.00011837,2]
[346668844,1735164258286,-500.0,0.00011837,2]
[346668845,1735164258313,-636.34,0.00011837,2]
[346668846,1735164258335,-500.0,0.00011837,2]
[346668847,1735164258358,-509.21,0.00011837,2]
[346668848,1735164258379,-500.0,0.00011837,2]
[346668849,1735164258401,-500.0,0.00011837,2]
[346668850,1735164258423,-500.0,0.00011837,2]
[346668851,1735164258446,-341.45412614,0.00011837,2]
[346668852,1735164258468,-500.0,0.00011837,2]
[346668853,1735164258490,-500.0,0.00011837,2]
[346668854,1735164258512,-500.0,0.00011837,2]
[346668855,1735164258534,-500.0,0.00011837,2]
[346668856,1735164258556,-500.0,0.00011837,2]
[346668857,1735164258577,-500.0,0.00011837,2]
[346668858,1735164258601,-500.0,0.00011837,2]
[346668859,1735164258623,-1080.81,0.00011837,2]
[346668860,1735164258644,-151.26046623,0.00011837,2]
[346668861,1735164258667,-500.0,0.00011837,2]
[346668862,1735164258688,-500.0,0.00011837,2]
[346668863,1735164258710,-500.0,0.00011837,2]
[346668864,1735164258731,-500.0,0.00011837,2]
[346668865,1735164258756,-500.0,0.00011837,2]
[346668866,1735164258779,-500.0,0.00011837,2]
[346668867,1735164258800,-500.0,0.00011837,2]
[346668868,1735164258823,-500.0,0.00011837,2]
[346668869,1735164258845,-500.0,0.00011837,2]
[346668870,1735164258866,-500.0,0.00011837,2]
[346668871,1735164258889,-500.0,0.00011837,2]
[346668872,1735164258912,-500.0,0.00011837,2]
[346668873,1735164258933,-500.0,0.00011837,2]
[346668874,1735164258954,-500.0,0.00011837,2]
[346668875,1735164258976,-500.0,0.00011837,2]
[346668876,1735164258998,-500.0,0.00011837,2]
[346668877,1735164259020,-500.0,0.00011837,2]
[346668878,1735164259042,-500.0,0.00011837,2]
[346668879,1735164259063,-155.940262,0.00011837,2]
[346668880,1735164259085,-500.0,0.00011837,2]
[346668881,1735164259107,-1275.074193,0.00011837,2]
[346668882,1735164259129,-500.0,0.00011837,2]
[346668883,1735164259150,-500.0,0.00011837,2]
[346668884,1735164259176,-1036.97,0.00011837,2]
[346668885,1735164259199,-1588.927792,0.00011837,2]
[346668886,1735164259220,-500.0,0.00011837,2]
[346668887,1735164259241,-500.0,0.00011837,2]
[346668888,1735164259263,-500.0,0.00011837,2]
[346668889,1735164259285,-500.0,0.00011837,2]
[346668890,1735164259308,-718.73,0.00011837,2]
[346668891,1735164259330,-500.0,0.00011837,2]
[346668892,1735164259352,-500.0,0.00011837,2]
[346668893,1735164259374,-500.0,0.00011837,2]
[346668894,1735164259397,-500.0,0.00011837,2]
[346668895,1735164259419,-500.0,0.00011837,2]
[346668896,1735164259440,-500.0,0.00011837,2]
[346668897,1735164259462,-500.0,0.00011837,2]
[346668898,1735164259483,-500.0,0.00011837,2]
[346668899,1735164259523,-500.0,0.00011837,2]
[346668900,1735164259558,-500.0,0.00011837,2]
[346668901,1735164259593,-500.0,0.00011837,2]
[346668902,1735164259624,-925.0,0.00011837,2]
[346668903,1735164259659,-999.65,0.00011837,2]
[346668904,1735164259693,-500.0,0.00011837,2]
[346668905,1735164259727,-500.0,0.00011837,2]
[346668906,1735164259764,-500.0,0.00011837,2]
[346668907,1735164259799,-504.79,0.00011837,2]
[346668908,1735164259827,-500.0,0.00011837,2]
[346668909,1735164259861,-709.37,0.00011837,2]
[346668910,1735164259888,-500.0,0.00011837,2]
[346668911,1735164259919,-500.0,0.00011837,2]
[346668912,1735164259948,-771.1,0.00011837,2]
[346668913,1735164259979,-500.0,0.00011837,2]
[346668914,1735164260013,-500.0,0.00011837,2]
[346668915,1735164260043,-500.0,0.00011837,2]
[346668916,1735164260074,-500.0,0.00011837,2]
[346668917,1735164260103,-702.5,0.00011837,2]
[346668918,1735164260135,-500.0,0.00011837,2]
[346668919,1735164260164,-500.0,0.00011837,2]
[346668920,1735164260194,-500.0,0.00011837,2]
[346668921,1735164260223,-500.0,0.00011837,2]
[346668922,1735164260251,-500.0,0.00011837,2]
[346668923,1735164260280,-500.0,0.00011837,2]
[346668924,1735164260310,-536.16,0.00011837,2]
[346668925,1735164260340,-865.77,0.00011837,2]
[346668926,1735164260369,-500.0,0.00011837,2]
[346668927,1735164260399,-350.25547359,0.00011837,2]
[346668928,1735164260430,-500.0,0.00011837,2]
[346668929,1735164260461,-500.0,0.00011837,2]
[346668930,1735164260491,-500.0,0.00011837,2]
[346668931,1735164260521,-500.0,0.00011837,2]
[346668932,1735164260550,-500.0,0.00011837,2]
[346668933,1735164260579,-159.90808329,0.00011837,2]
[346668934,1735164260608,-500.0,0.00011837,2]
[346668935,1735164260638,-975.13,0.00011837,2]
[346668936,1735164260667,-557.09,0.00011837,2]
[346668937,1735164260696,-500.0,0.00011837,2]
[346668938,1735164260724,-914.84,0.00011837,2]
[346668939,1735164260753,-500.0,0.00011837,2]
[346668940,1735164260783,-500.0,0.00011837,2]
[346668941,1735164260813,-500.0,0.00011837,2]
[346668942,1735164260843,-500.0,0.00011837,2]
[346668943,1735164260873,-1047.86,0.00011837,2]
[346668944,1735164260902,-500.0,0.00011837,2]
[346668945,1735164260931,-840.33,0.00011837,2]
[346668946,1735164260960,-500.0,0.00011837,2]
[346668947,1735164260993,-500.0,0.00011837,2]
[346668948,1735164261024,-500.0,0.00011837,2]
[346668949,1735164261054,-509.2,0.00011837,2]
[346668950,1735164261084,-305.48171729,0.00011837,2]
[346668951,1735164261114,-500.0,0.00011837,2]
[346668952,1735164261146,-1028.5,0.00011837,2]
[346668953,1735164261174,-500.0,0.00011837,2]
[346668954,1735164261202,-550.31583532,0.00011837,2]
[346668955,1735164261232,-500.0,0.00011837,2]
[346668956,1735164261263,-500.0,0.00011837,2]
[346668957,1735164261292,-500.0,0.00011837,2]
[346668958,1735164261322,-657.78,0.00011837,2]
[346668959,1735164261353,-500.0,0.00011837,2]
[346668960,1735164261382,-500.0,0.00011837,2]
[346668961,1735164261405,-500.0,0.00011837,2]
[346668962,1735164261428,-506.07,0.00011837,2]
[346668963,1735164261450,-500.0,0.00011837,2]
[346668964,1735164261795,-500.0,0.00011837,2]
[346668965,1735164261817,-500.0,0.00011837,2]
[346668966,1735164261840,-500.0,0.00011837,2]
[346668967,1735164261863,-801.09,0.00011837,2]
[346668968,1735164261886,-500.0,0.00011837,2]
[346668969,1735164261908,-500.0,0.00011837,2]
[346668970,1735164261931,-1095.9,0.00011837,2]
[346668971,1735164261952,-703.76,0.00011837,2]
[346668972,1735164261974,-500.0,0.00011837,2]
[346668973,1735164261996,-500.0,0.00011837,2]
[346668974,1735164262020,-1493.24,0.00011837,2]
[346668975,1735164262045,-500.0,0.00011837,2]
[346668976,1735164262069,-1622.13,0.00011837,2]
[346668977,1735164262093,-500.0,0.00011837,2]
[346668978,1735164262116,-500.0,0.00011837,2]
[346668979,1735164262138,-500.0,0.00011837,2]
[346668980,1735164262161,-500.0,0.00011837,2]
[346668981,1735164262185,-500.0,0.00011837,2]
[346668982,1735164262210,-552.06,0.00011837,2]
[346668983,1735164262232,-500.0,0.00011837,2]
[346668984,1735164262255,-500.0,0.00011837,2]
[346668985,1735164262278,-500.0,0.00011837,2]
[346668986,1735164262299,-500.0,0.00011837,2]
[346668987,1735164262320,-500.0,0.00011837,2]
[346668988,1735164262342,-500.0,0.00011837,2]
[346668989,1735164262363,-500.0,0.00011837,2]
[346668990,1735164262386,-500.0,0.00011837,2]
[346668991,1735164262408,-500.0,0.00011837,2]
[346668992,1735164262431,-691.59,0.00011837,2]
[346668993,1735164262453,-500.0,0.00011837,2]
[346668994,1735164262475,-500.0,0.00011837,2]
[346668995,1735164262497,-1373.84,0.00011837,2]
[346668996,1735164262520,-500.0,0.00011837,2]
[346668997,1735164262542,-2141.5,0.00011837,2]
[346668998,1735164262565,-1878.43,0.00011837,2]
[346668999,1735164262589,-500.0,0.00011837,2]
[346669000,1735164262611,-500.0,0.00011837,2]
[346669001,1735164262634,-2761.63,0.00011837,2]
[346669002,1735164262657,-1078.32,0.00011837,2]
[346669003,1735164262679,-500.0,0.00011837,2]
[346669004,1735164262702,-500.0,0.00011837,2]
[346669005,1735164262726,-500.0,0.00011837,2]
[346669006,1735164262753,-2746.02,0.00011837,2]
[346669007,1735164262774,-500.0,0.00011837,2]
[346669008,1735164262797,-500.0,0.00011837,2]
[346669009,1735164262821,-2880.06,0.00011837,2]
[346669010,1735164262845,-500.0,0.00011837,2]
[346669011,1735164262867,-500.0,0.00011837,2]
[346669012,1735164262889,-500.0,0.00011837,2]
[346669013,1735164262912,-3341.89,0.00011837,2]
[346669014,1735164262935,-500.0,0.00011837,2]
[346669015,1735164262957,-500.0,0.00011837,2]
[346669016,1735164262980,-15826.98,0.00011837,2]
[346669017,1735164263002,-500.0,0.00011837,2]
[346669018,1735164263025,-1621.78,0.00011837,2]
[346669019,1735164263048,-1439.39,0.00011837,2]
[346669020,1735164263070,-1377.78,0.00011837,2]
[346669021,1735164263093,-500.0,0.00011837,2]
[346669022,1735164263116,-500.0,0.00011837,2]
[346669023,1735164263142,-500.0,0.00011837,2]
[346669024,1735164263165,-500.0,0.00011837,2]
[346669025,1735164263186,-500.0,0.00011837,2]
[346669026,1735164263208,-500.0,0.00011837,2]
[346669027,1735164263232,-1521.59,0.00011837,2]
[346669028,1735164263253,-500.0,0.00011837,2]
[346669029,1735164263276,-592.95,0.00011837,2]
[346669030,1735164263298,-500.0,0.00011837,2]
[346669031,1735164263319,-512.00269523,0.00011837,2]
[346669032,1735164263340,-873.22,0.00011837,2]
[346669033,1735164263362,-1403.1,0.00011837,2]
[346669034,1735164263384,-500.0,0.00011837,2]
[346669035,1735164263406,-500.0,0.00011837,2]
[346669036,1735164263428,-1143.0,0.00011837,2]
[346669037,1735164263451,-872.75,0.00011837,2]
[346669038,1735164263474,-3400.12,0.00011837,2]
[346669039,1735164263496,-558.213018,0.00011837,2]
[346669040,1735164263519,-500.0,0.00011837,2]
[346669041,1735164263543,-500.0,0.00011837,2]
[346669042,1735164263565,-500.0,0.00011837,2]
[346669043,1735164263588,-500.0,0.00011837,2]
[346669044,1735164263610,-500.0,0.00011837,2]
[346669045,1735164263632,-500.0,0.00011837,2]
[346669046,1735164263654,-500.0,0.00011837,2]
[346669047,1735164263676,-502.06591411,0.00011837,2]
[346669048,1735164263698,-500.0,0.00011837,2]
[346669049,1735164263721,-500.0,0.00011837,2]
[346669050,1735164263748,-1967.11,0.00011837,2]
[346669051,1735164263772,-9388.77,0.00011837,2]
[346669052,1735164263796,-6075.06,0.00011837,2]
[346669053,1735164263818,-500.0,0.00011837,2]
[346669054,1735164263842,-3529.64,0.00011837,2]
[346669055,1735164263866,-500.0,0.00011837,2]
[346669056,1735164263888,-500.0,0.00011837,2]
[346669057,1735164263912,-3910.89,0.00011837,2]
[346669058,1735164263935,-500.0,0.00011837,2]
[346669059,1735164263958,-1008.73,0.00011837,2]
[346669060,1735164263979,-500.0,0.00011837,2]
[346669061,1735164264007,-500.0,0.00011837,2]
[346669062,1735164264029,-582.17,0.00011837,2]
[346669063,1735164264053,-500.0,0.00011837,2]
[346669064,1735164264075,-500.0,0.00011837,2]
[346669065,1735164264097,-500.0,0.00011837,2]
[346669066,1735164264120,-916.08,0.00011837,2]
[346669067,1735164264143,-4341.42,0.00011837,2]
[346669068,1735164264166,-2831.93,0.00011837,2]
[346669069,1735164264187,-500.0,0.00011837,2]
[346669070,1735164264209,-500.0,0.00011837,2]
[346669071,1735164264231,-1792.92,0.00011837,2]
[346669072,1735164264254,-1974.93,0.00011837,2]
[346669073,1735164264277,-500.0,0.00011837,2]
[346669074,1735164264301,-500.0,0.00011837,2]
[346669075,1735164264326,-727.18,0.00011837,2]
[346669076,1735164264350,-495.31352796,0.00011837,2]
[346669077,1735164264374,-1377.33,0.00011837,2]
[346669078,1735164264397,-500.0,0.00011837,2]
[346669080,1735164264421,-500.0,0.00011837,2]
[346669081,1735164264443,-500.0,0.00011837,2]
[346669082,1735164264466,-500.0,0.00011837,2]
[346669083,1735164264488,-500.0,0.00011837,2]
[346669084,1735164264512,-500.0,0.00011837,2]
[346669085,1735164264536,-4112.45,0.00011837,2]
[346669086,1735164264559,-500.0,0.00011837,2]
[346669087,1735164264581,-1234.38,0.00011837,2]
[346669088,1735164264602,-500.0,0.00011837,2]
[346669089,1735164264624,-500.0,0.00011837,2]
[346669090,1735164264646,-931.22,0.00011837,2]
[346669091,1735164264667,-444.34930607,0.00011837,2]
[346669092,1735164264689,-500.0,0.00011837,2]
[346669093,1735164264711,-500.0,0.00011837,2]
[346669094,1735164264733,-500.0,0.00011837,2]
[346669095,1735164264761,-1090.15,0.00011837,2]
[346669096,1735164264783,-500.0,0.00011837,2]
[346669097,1735164264807,-2984.64,0.00011837,2]
[346669098,1735164264839,-500.0,0.00011837,2]
[346669099,1735164264866,-1922.51,0.00011837,2]
[346669100,1735164264887,-500.0,0.00011837,2]
[346669101,1735164264909,-500.0,0.00011837,2]
[346669102,1735164264931,-500.0,0.00011837,2]